bitfinex-derivatives/quotes_SOLF0:USTF0_20260129
["timestamp","ask_amount","ask_price","bid_price","bid_amount"]
[1769718028114,20.86923083,117.04,116.99,7.7061]
[1769718031918,20.86923083,117.03,116.98,7.707]
[1769718033123,20.86923083,117.03,116.99,7.7062]
[1769718043831,20.86923083,117.03,116.98,7.7069]
[1769718044228,20.86923083,117.02,116.94,119.9273]
[1769718044433,20.86923083,117.02,116.94,126.61251039]
[1769718045329,20.86923083,117.02,116.97,7.7071]
[1769718046836,20.86923083,117.02,116.98,7.707]
[1769718052345,20.86923083,117.02,116.95,119.9178]
[1769718052835,20.86923083,117.02,116.98,7.707]
[1769718058347,20.86923083,117.02,116.99,7.7063]
[1769718061550,20.86923083,117.02,116.99,10.51426696]
[1769718061951,20.86923083,117.02,116.95,119.9178]
[1769718062146,20.86923083,117.02,116.97,2.80796696]
[1769718062649,20.86923083,117.02,116.98,7.7069]
[1769718092368,20.86923083,117.02,116.99,7.7058]
[1769718092572,17.01573083,117.09,117.02,119.8459]
[1769718092773,17.01573083,117.09,117.05,2.80869274]
[1769718092968,17.01573083,117.09,117.04,2.80869274]
[1769718093168,17.01573083,117.09,117.05,7.7024]
[1769718093771,17.01573083,117.09,117.05,10.51109274]
[1769718094176,17.01573083,117.09,117.05,7.7024]
[1769718094472,17.01573083,117.09,117.05,10.51109274]
[1769718096267,17.01573083,117.09,117.05,7.7024]
[1769718096572,17.01573083,117.09,117.06,7.7016]
[1769718096775,2.16652326,117.09,117.06,10.51029274]
[1769718099976,9.59112705,117.11,117.06,10.51029274]
[1769718103876,9.59112705,117.11,117.07,7.701]
[1769718106289,9.59112705,117.13,117.08,2.80869274]
[1769718106486,9.59112705,117.13,117.09,2.80869274]
[1769718106696,9.59112705,117.13,117.07,119.7932]
[1769718106987,9.59112705,117.13,117.09,2.80869274]
[1769718107184,9.59112705,117.13,117.08,2.80869274]
[1769718107488,9.59112705,117.13,117.09,7.6992]
[1769718107687,9.59112705,117.13,117.09,10.50789274]
[1769718109283,9.59112705,117.15,117.1,10.50759274]
[1769718109787,9.59112705,117.14,117.1,7.6989]
[1769718111384,9.59112705,117.13,117.1,7.6989]
[1769718113685,12.39981979,117.14,117.08,2.80869274]
[1769718114981,12.39981979,117.14,117.09,7.6997]
[1769718115385,9.59112705,117.14,117.09,7.6997]
[1769718118791,9.59112705,117.12,117.08,7.7004]
[1769718121090,9.59112705,117.12,117.08,10.50909274]
[1769718121492,9.59112705,117.14,117.09,10.50849274]
[1769718121790,9.59112705,117.18,117.13,2.80869274]
[1769718121989,9.59112705,117.18,117.14,2.80869274]
[1769718122195,9.59112705,117.18,117.13,2.80869274]
[1769718122692,9.59112705,117.18,117.15,2.80869274]
[1769718123192,9.59112705,117.18,117.13,7.6971]
[1769718123387,9.59112705,117.18,117.14,2.80869274]
[1769718123780,9.59112705,117.18,117.13,7.6971]
[1769718123983,9.59112705,117.18,117.14,2.80869274]
[1769718124190,3.74879243,117.19,117.15,7.6958]
[1769718124392,3.74879243,117.19,117.15,10.50449274]
[1769718125185,3.74879243,117.19,117.16,7.6952]
[1769718125386,3.74879243,117.19,117.16,10.50389274]
[1769718125592,12.39076415,117.22,117.15,2.7996371]
[1769718125793,436.3148,117.25,117.15,2.7996371]
[1769718125794,12.39076415,117.21,117.15,2.7996371]
[1769718125996,12.39076415,117.21,117.16,7.6952]
[1769718126195,9.59112705,117.21,117.16,7.6952]
[1769718126490,9.59112705,117.21,117.17,7.6945]
[1769718126891,9.59112705,117.21,117.16,2.7996371]
[1769718127091,9.59112705,117.21,117.16,10.4947371]
[1769718129697,9.59112705,117.21,117.16,7.6951]
[1769718130400,12.39076415,117.21,117.16,7.6951]
[1769718130698,9.59112705,117.21,117.16,7.6951]
[1769718131500,9.59112705,117.21,117.15,2.7996371]
[1769718131703,12.39076415,117.2,117.14,2.7996371]
[1769718132302,12.39076415,117.2,117.15,7.6958]
[1769718133696,9.59112705,117.2,117.15,7.6958]
[1769718138700,9.59112705,117.2,117.16,7.6952]
[1769718143109,12.39076415,117.2,117.16,7.6952]
[1769718143501,9.59112705,117.2,117.16,7.6952]
[1769718144308,12.39076415,117.2,117.16,7.6952]
[1769718144613,9.59112705,117.19,117.16,7.6952]
[1769718145906,5.74322705,117.17,117.12,340.98]
[1769718146312,8.54286415,117.17,117.12,340.98]
[1769718146509,5.74322705,117.16,117.12,348.6772]
[1769718147111,8.54286415,117.18,117.12,343.7796371]
[1769718147305,5.74322705,117.17,117.12,343.7796371]
[1769718148405,5.74322705,117.17,117.12,340.98]
[1769718148615,8.54286415,117.16,117.12,340.98]
[1769718149113,5.74322705,117.15,117.12,340.98]
[1769718149313,5.74322705,117.14,117.09,2.7996371]
[1769718149509,5.74322705,117.14,117.09,10.4988371]
[1769718149717,5.74322705,117.14,117.09,7.6992]
[1769718149915,5.74322705,117.13,117.08,340.82]
[1769718150108,8.54286415,117.13,117.08,340.82]
[1769718150314,5.74322705,117.13,117.09,2.7996371]
[1769718150614,5.74322705,117.13,117.1,2.7996371]
[1769718150913,5.74322705,117.13,117.09,2.7996371]
[1769718151308,5.74322705,117.13,117.1,7.6989]
[1769718152207,5.74322705,117.16,117.11,10.4980371]
[1769718152611,5.74322705,117.16,117.12,10.4973371]
[1769718156413,16.23676415,117.18,117.13,7.6971]
[1769718156614,5.74322705,117.17,117.12,2.7996371]
[1769718156918,5.74322705,117.19,117.15,2.7996371]
[1769718157122,5.74322705,117.19,117.16,2.7996371]
[1769718157324,5.74322705,117.21,117.16,10.4942371]
[1769718158219,5.74322705,117.21,117.16,7.6946]
[1769718158419,5.74322705,117.2,117.14,2.7996371]
[1769718159016,5.74322705,117.18,117.14,7.6965]
[1769718163616,5.74322705,117.18,117.14,10.4961371]
[1769718163822,5.74322705,117.18,117.14,7.6965]
[1769718164827,5.74322705,117.18,117.15,7.6958]
[1769718168720,2.7996371,117.17,117.13,7.6968]
[1769718168920,5.74322705,117.16,117.11,122.5514371]
[1769718169932,5.74322705,117.16,117.12,2.7996371]
[1769718171332,5.74322705,117.16,117.12,10.4971371]
[1769718172035,5.74322705,117.18,117.13,7.6969]
[1769718172229,5.74322705,117.18,117.13,10.4965371]
[1769718176629,13.43582705,117.2,117.15,2.7996371]
[1769718176829,5.74322705,117.19,117.15,2.7996371]
[1769718177233,5.74322705,117.19,117.14,10.4959371]
[1769718177633,5.74322705,117.19,117.14,7.6963]
[1769718178026,5.74322705,117.19,117.15,7.6957]
[1769718190946,5.74322705,117.19,117.11,119.7531]
[1769718190947,5.74322705,117.21,117.16,10.49620378]
[1769718193545,5.74322705,117.21,117.16,7.6951]
[1769718197946,5.74322705,117.2,117.16,7.6951]
[1769718200353,8.54433083,117.2,117.16,7.6951]
[1769718200556,5.74322705,117.19,117.15,7.6958]
[1769718202448,5.74322705,117.19,117.16,7.6951]
[1769718202648,2.80110378,117.2,117.16,7.6951]
[1769718202952,16.23663083,117.21,117.16,7.6951]
[1769718204554,5.74322705,117.2,117.16,7.6951]
[1769718205747,5.74322705,117.22,117.17,7.6945]
[1769718205956,5.74322705,117.21,117.17,7.6945]
[1769718206549,8.54433083,117.21,117.16,2.80110378]
[1769718206755,5.74322705,117.21,117.16,7.6951]
[1769718207156,8.54433083,117.21,117.16,7.6951]
[1769718207855,8.54433083,117.2,117.16,7.6951]
[1769718208555,5.74322705,117.2,117.16,7.6951]
[1769718208850,5.74322705,117.2,117.15,7.6958]
[1769718209056,2.80110378,117.19,117.15,7.6958]
[1769718209245,8.54433083,117.2,117.15,7.6958]
[1769718210658,5.74322705,117.19,117.15,7.6958]
[1769718220963,5.74322705,117.19,117.13,2.80110378]
[1769718222067,5.74322705,117.19,117.15,7.6953]
[1769718225873,8.54433083,117.21,117.16,7.6952]
[1769718226176,5.74322705,117.21,117.15,2.80110378]
[1769718226469,5.74322705,117.21,117.17,7.6941]
[1769718226665,8.54433083,117.23,117.17,2.80110378]
[1769718227470,8.54433083,117.23,117.18,7.6938]
[1769718227871,5.74322705,117.21,117.18,7.6938]
[1769718235073,5.74322705,117.21,117.16,10.49610378]
[1769718235376,5.74322705,117.21,117.16,7.695]
[1769718237472,5.74322705,117.21,117.16,2.80110378]
[1769718238079,5.74322705,117.21,117.16,10.49630378]
[1769718247581,5.74322705,117.21,117.16,10.49511179]
[1769718254987,5.74322705,117.23,117.17,2.79991179]
[1769718255186,5.74322705,117.25,117.19,2.79991179]
[1769718255489,5.74322705,117.25,117.2,2.79991179]
[1769718256082,5.74322705,117.25,117.19,2.79991179]
[1769718256283,5.74322705,117.25,117.2,7.692]
[1769718256477,5.74322705,117.25,117.2,10.49191179]
[1769718256990,5.74322705,117.25,117.2,7.692]
[1769718259293,8.94268249,117.26,117.21,10.49141179]
[1769718259595,11.74259428,117.26,117.21,7.6915]
[1769718259985,8.94268249,117.26,117.22,10.49111179]
[1769718260188,8.94268249,117.26,117.22,7.6912]
[1769718260496,8.94268249,117.26,117.22,10.49111179]
[1769718260792,8.94268249,117.26,117.22,7.6912]
[1769718261488,8.94268249,117.26,117.21,2.79991179]
[1769718261691,11.74259428,117.26,117.2,10.49201179]
[1769718262288,8.94268249,117.26,117.2,10.49201179]
[1769718262685,8.94268249,117.23,117.19,7.6932]
[1769718263588,11.74259428,117.24,117.19,7.6932]
[1769718267300,8.94268249,117.24,117.19,7.6932]
[1769718267497,8.94268249,117.24,117.19,10.49311179]
[1769718268400,8.94268249,117.24,117.19,7.6932]
[1769718269896,8.94268249,117.23,117.19,7.6932]
[1769718270802,11.74259428,117.23,117.17,351.21391179]
[1769718271006,8.94268249,117.22,117.17,351.21391179]
[1769718272202,8.94268249,117.22,117.18,7.6938]
[1769718274605,8.94268249,117.22,117.18,10.49371179]
[1769718275806,11.74259428,117.22,117.18,7.6938]
[1769718276012,8.94268249,117.22,117.18,7.6938]
[1769718278108,8.94268249,117.23,117.18,10.49371179]
[1769718292115,8.94268249,117.23,117.17,340.7]
[1769718292116,8.94268249,117.21,117.17,7.6944]
[1769718295916,8.94268249,117.21,117.17,10.49431179]
[1769718296115,8.94268249,117.23,117.19,2.79991179]
[1769718296411,8.94268249,117.25,117.2,2.79991179]
[1769718296714,8.94268249,117.25,117.21,2.79991179]
[1769718297609,8.94268249,117.25,117.22,2.79991179]
[1769718297916,8.94268249,117.27,117.23,2.79991179]
[1769718298213,8.94268249,117.27,117.24,7.6898]
[1769718298412,8.94268249,117.27,117.24,10.48971179]
[1769718299413,8.94268249,117.27,117.24,7.6898]
[1769718300115,8.94268249,117.27,117.23,2.79991179]
[1769718300710,8.94268249,117.27,117.24,2.79991179]
[1769718302016,5.09753249,117.25,117.19,2.79991179]
[1769718302215,5.09753249,117.25,117.21,2.79991179]
[1769718302721,5.09753249,117.25,117.2,2.79991179]
[1769718303323,5.09753249,117.25,117.2,10.49191179]
[1769718303822,5.09753249,117.25,117.21,2.79991179]
[1769718304120,5.09753249,117.25,117.21,10.49171179]
[1769718304324,5.09753249,117.25,117.2,2.79991179]
[1769718305318,5.09753249,117.25,117.21,2.79991179]
[1769718306017,5.09753249,117.25,117.21,10.49171179]
[1769718306218,5.09753249,117.25,117.21,7.6918]
[1769718309024,5.09753249,117.25,117.2,10.49241179]
[1769718309424,5.09753249,117.25,117.2,7.6925]
[1769718310823,5.09753249,117.23,117.18,10.49162086]
[1769718311027,5.09753249,117.22,117.17,343.45842086]
[1769718311228,5.09753249,117.21,117.15,2.79842086]
[1769718311819,5.09753249,117.21,117.16,2.79842086]
[1769718312527,5.09753249,117.21,117.16,10.49302086]
[1769718313320,5.09753249,117.2,117.14,348.3559]
[1769718313524,5.09753249,117.2,117.14,351.15432086]
[1769718313929,5.09753249,117.2,117.15,7.6956]
[1769718314128,7.89595335,117.19,117.12,119.7445]
[1769718314433,5.09753249,117.18,117.14,2.79842086]
[1769718314733,5.09753249,117.18,117.14,10.49432086]
[1769718315127,5.09753249,117.18,117.14,7.6959]
[1769718315333,5.09753249,117.18,117.14,10.49432086]
[1769718317032,5.09753249,117.18,117.14,7.6959]
[1769718317734,5.09753249,117.2,117.16,7.6952]
[1769718317934,15.58725335,117.22,117.16,7.6952]
[1769718318330,5.09753249,117.21,117.16,7.6952]
[1769718318526,7.89595335,117.2,117.16,7.6952]
[1769718319130,5.09753249,117.2,117.16,7.6952]
[1769718321427,5.09753249,117.2,117.14,2.79842086]
[1769718321626,5.09753249,117.2,117.15,2.79842086]
[1769718322037,5.09753249,117.2,117.16,7.6946]
[1769718322833,5.09753249,117.24,117.18,2.79842086]
[1769718324229,5.09753249,117.24,117.21,7.6919]
[1769718324532,5.09753249,117.26,117.2,2.79842086]
[1769718324740,7.89595335,117.26,117.2,2.79842086]
[1769718325440,5.09753249,117.25,117.19,2.79842086]
[1769718325740,7.89595335,117.25,117.19,2.79842086]
[1769718326133,5.09753249,117.23,117.2,7.6921]
[1769718327940,5.09753249,117.25,117.2,7.6921]
[1769718329742,7.89595335,117.25,117.2,7.6921]
[1769718332132,5.09753249,117.24,117.2,7.6921]
[1769718332840,5.09753249,117.24,117.2,10.49052086]
[1769718333042,5.09753249,117.24,117.21,2.79842086]
[1769718334645,5.09753249,117.26,117.21,10.49032086]
[1769718337845,5.09753249,117.25,117.2,10.49052086]
[1769718338046,339.67007425,117.31,117.24,2.79842086]
[1769718338047,5.09753249,117.31,117.24,2.79842086]
[1769718338244,5.09753249,117.29,117.23,10.48872086]
[1769718338442,5.09753249,117.28,117.23,7.6903]
[1769718338643,5.09753249,117.28,117.23,10.48872086]
[1769718340542,5.09753249,117.3,117.22,119.6372]
[1769718340745,5.09753249,117.3,117.26,2.79842086]
[1769718342146,5.09753249,117.3,117.25,2.79842086]
[1769718342343,5.09753249,117.29,117.24,2.79842086]
[1769718343152,5.09753249,117.29,117.21,119.65]
[1769718343348,5.09753249,117.29,117.24,10.48832086]
[1769718344254,5.09753249,117.29,117.24,7.6899]
[1769718344551,5.09753249,117.29,117.24,10.48832086]
[1769718350962,5.09753249,117.29,117.25,2.79842086]
[1769718353169,5.09753249,117.29,117.26,2.79842086]
[1769718354366,5.09753249,117.31,117.26,2.79842086]
[1769718354566,5.09753249,117.31,117.27,2.79842086]
[1769718355261,5.09753249,117.31,117.24,119.6196]
[1769718355262,5.09753249,117.31,117.28,2.79842086]
[1769718357367,25.65,117.35,117.3,2.79842086]
[1769718357368,5.09753249,117.35,117.3,2.79842086]
[1769718357575,5.09753249,117.35,117.31,2.79842086]
[1769718357869,5.09753249,117.35,117.3,10.48392086]
[1769718358374,5.09753249,117.35,117.29,2.79842086]
[1769718358764,5.09753249,117.35,117.3,2.79842086]
[1769718359064,5.09753249,117.34,117.28,2.79842086]
[1769718360368,5.09753249,117.33,117.28,2.79842086]
[1769718360563,5.09753249,117.33,117.29,2.79842086]
[1769718363474,5.09753249,117.33,117.28,2.79842086]
[1769718364564,6.721e-05,117.4,117.28,25.65]
[1769718364769,7.89595335,117.43,117.36,2.79842086]
[1769718364964,5.09753249,117.43,117.38,2.79842086]
[1769718365162,3.74879243,117.45,117.4,2.79842086]
[1769718365968,11.64474578,117.45,117.38,2.79842086]
[1769718366276,5.09753249,117.44,117.38,2.79842086]
[1769718367177,5.09753249,117.44,117.39,7.6801]
[1769718367379,7.89595335,117.42,117.35,122.30592086]
[1769718368276,7.89595335,117.42,117.37,7.6809]
[1769718370070,7.89595335,117.41,117.35,7.6824]
[1769718370470,7.89595335,117.41,117.34,2.79842086]
[1769718371368,7.89595335,117.41,117.36,7.6819]
[1769718371575,7.88869853,117.41,117.36,7.6819]
[1769718372478,5.09753249,117.41,117.36,7.6819]
[1769718376080,7.88869853,117.41,117.36,7.6819]
[1769718376377,7.88869853,117.4,117.34,10.47406604]
[1769718376568,5.09753249,117.4,117.34,10.47406604]
[1769718376769,5.09753249,117.4,117.35,2.79116604]
[1769718378579,7.88869853,117.4,117.34,10.47406604]
[1769718378771,5.09753249,117.4,117.34,10.47406604]
[1769718381879,5.09753249,117.4,117.35,2.79116604]
[1769718385282,5.09753249,117.4,117.35,10.47386604]
[1769718391687,5.09753249,117.4,117.34,7.6833]
[1769718391887,5.09753249,117.4,117.34,10.47446604]
[1769718393594,5.09753249,117.39,117.33,7.6839]
[1769718393794,5.09753249,117.39,117.33,10.47506604]
[1769718395092,7.88869853,117.38,117.29,340.26]
[1769718395297,5.09753249,117.36,117.3,2.79116604]
[1769718396294,5.09753249,117.36,117.31,7.6853]
[1769718397496,5.09753249,117.36,117.31,10.47646604]
[1769718398593,5.09753249,117.35,117.3,10.47716604]
[1769718400100,5.09753249,117.35,117.3,7.686]
[1769718400503,5.09753249,117.34,117.28,7.6869]
[1769718400799,5.09753249,117.34,117.28,10.47806604]
[1769718401500,5.09753249,117.34,117.29,2.79116604]
[1769718403706,5.09753249,117.33,117.29,2.79116604]
[1769718404006,5.09753249,117.33,117.28,10.47806604]
[1769718407603,12.78163249,117.33,117.28,2.79116604]
[1769718409506,12.78163249,117.33,117.27,7.6879]
[1769718409704,12.78163249,117.33,117.28,2.79116604]
[1769718409904,5.09753249,117.32,117.28,2.79116604]
[1769718411305,5.09753249,117.32,117.27,7.6879]
[1769718411512,5.09753249,117.31,117.26,2.79116604]
[1769718411706,5.09753249,117.31,117.27,2.79116604]
[1769718417418,5.09753249,117.33,117.27,7.688]
[1769718417614,5.09753249,117.33,117.24,119.6197]
[1769718417615,5.09753249,117.33,117.31,2.79116604]
[1769718417911,7.6829,117.35,117.31,2.79116604]
[1769718419512,7.6829,117.35,117.32,2.79116604]
[1769718419913,11.13114095,117.35,117.32,2.79116604]
[1769718420721,3.44824095,117.35,117.31,2.79116604]
[1769718421820,3.44824095,117.35,117.3,2.79116604]
[1769718423824,3.44824095,117.34,117.25,2.07426838]
[1769718424023,145.1529,117.36,117.25,2.07426838]
[1769718424024,3.44824095,117.32,117.25,2.07426838]
[1769718424324,3.44824095,117.31,117.25,4.86543442]
[1769718424524,2.79116604,117.3,117.23,13.99092187]
[1769718424724,3.44824095,117.28,117.23,2.79116604]
[1769718425218,3.44824095,117.28,117.22,2.79116604]
[1769718425723,3.44824095,117.27,117.22,2.79116604]
[1769718425919,3.44824095,117.27,117.21,3.50955583]
[1769718426126,3.44824095,117.27,117.22,2.79116604]
[1769718427727,3.44824095,117.27,117.21,13.99262187]
[1769718429324,3.44824095,117.29,117.23,3.50955583]
[1769718429524,3.44824095,117.29,117.23,6.30072187]
[1769718430328,3.44824095,117.29,117.23,13.99122187]
[1769718430528,6.23940699,117.28,117.23,3.50955583]
[1769718431226,3.44824095,117.28,117.23,3.50955583]
[1769718431420,3.44824095,117.28,117.22,2.79116604]
[1769718431833,3.44824095,117.27,117.21,6.30072187]
[1769718433625,3.44824095,117.27,117.21,6.30737588]
[1769718434018,13.934061,117.27,117.21,3.50955583]
[1769718434932,11.13624095,117.27,117.21,6.30737588]
[1769718436136,3.44824095,117.26,117.21,6.30737588]
[1769718436636,3.44824095,117.25,117.19,11.20275583]
[1769718436838,6.246061,117.25,117.19,14.00057588]
[1769718437425,6.246061,117.25,117.2,3.50955583]
[1769718437731,3.44824095,117.25,117.2,3.50955583]
[1769718438725,3.44824095,117.25,117.2,6.30737588]
[1769718438929,3.44824095,117.25,117.21,2.79782005]
[1769718439438,3.44824095,117.25,117.2,6.30737588]
[1769718439638,3.44824095,117.25,117.21,2.79782005]
[1769718439837,3.44824095,117.25,117.2,6.30737588]
[1769718445847,3.44972559,117.24,117.19,10.49102005]
[1769718446042,3.44972559,117.24,117.19,13.89636229]
[1769718446238,3.44972559,117.24,117.2,13.89566229]
[1769718447244,6.24754564,117.26,117.2,13.89566229]
[1769718447444,11.13842559,117.26,117.2,13.89566229]
[1769718447744,13.93624564,117.26,117.2,13.89566229]
[1769718449649,7.688,117.27,117.21,10.48972005]
[1769718449842,7.688,117.27,117.22,6.20316229]
[1769718450247,6.24754564,117.28,117.22,13.89436229]
[1769718452152,3.44972559,117.27,117.22,13.89436229]
[1769718452551,3.44972559,117.27,117.22,11.09654224]
[1769718453553,3.44972559,117.27,117.22,13.89436229]
[1769718454755,3.44972559,117.27,117.22,11.09654224]
[1769718455355,3.44972559,117.27,117.22,13.89436229]
[1769718455655,3.38061234,117.26,117.21,7.6918]
[1769718455850,6.17843239,117.26,117.21,7.6918]
[1769718456050,6.17843239,117.26,117.21,11.11889736]
[1769718457350,3.38061234,117.26,117.22,3.42709736]
[1769718458856,6.17843239,117.26,117.2,13.91741741]
[1769718459852,2.79782005,117.23,117.18,11.12039736]
[1769718460258,6.17843239,117.22,117.16,6.22491741]
[1769718460760,6.17843239,117.22,117.17,11.12159736]
[1769718460959,3.38061234,117.22,117.17,11.12159736]
[1769718464061,6.17843239,117.22,117.17,11.12159736]
[1769718464654,6.17843239,117.22,117.17,3.42709736]
[1769718464861,6.17843239,117.21,117.15,6.22491741]
[1769718465268,13.87033239,117.21,117.15,3.42709736]
[1769718466167,10.49052005,117.2,117.15,3.42709736]
[1769718466763,13.87113239,117.2,117.15,3.42709736]
[1769718468362,10.49112005,117.19,117.15,3.42709736]
[1769718468662,6.17843239,117.18,117.13,3.42709736]
[1769718468862,2.79782005,117.17,117.13,3.42709736]
[1769718469062,13.87303239,117.17,117.11,3.42709736]
[1769718469269,2.79782005,117.16,117.11,3.42709736]
[1769718469468,6.17843239,117.16,117.11,3.42709736]
[1769718469862,13.87423239,117.16,117.11,3.42709736]
[1769718472270,6.17843239,117.16,117.11,3.42709736]
[1769718473471,3.38061234,117.16,117.11,3.42709736]
[1769718474671,6.17843239,117.16,117.11,3.42709736]
[1769718476968,6.26124792,117.14,117.09,3.25790753]
[1769718477168,6.26124792,117.12,117.06,6.05572758]
[1769718478373,6.26124792,117.12,117.06,13.75752758]
[1769718479076,3.46342787,117.12,117.06,13.75752758]
[1769718479772,13.95914792,117.12,117.06,6.05572758]
[1769718479979,6.26124792,117.11,117.06,3.25790753]
[1769718480173,3.46342787,117.1,117.04,13.75822758]
[1769718480377,6.26124792,117.1,117.04,13.75822758]
[1769718480677,3.46342787,117.1,117.04,13.75822758]
[1769718481768,3.46342787,117.09,117.04,3.25790753]
[1769718481975,3.46342787,117.09,117.04,6.05572758]
[1769718482568,3.46342787,117.09,117.02,6.05572758]
[1769718482569,3.46342787,117.08,117.02,6.05572758]
[1769718482769,11.16402787,117.08,117.02,6.05572758]
[1769718483075,11.16402787,117.08,117.03,6.05572758]
[1769718483276,11.16402787,117.08,117.03,2.79782005]
[1769718483472,3.46342787,117.08,117.03,2.79782005]
[1769718483677,3.46342787,117.11,117.05,6.05572758]
[1769718483874,3.46342787,117.11,117.06,6.05572758]
[1769718484076,3.46342787,117.11,117.07,2.79782005]
[1769718485871,3.46342787,117.11,117.08,2.79782005]
[1769718488178,3.46342787,117.11,117.07,2.79782005]
[1769718489081,11.16192787,117.11,117.06,6.05572758]
[1769718490680,11.16192787,117.11,117.07,2.79782005]
[1769718491880,11.16192787,117.11,117.06,6.05572758]
[1769718495583,11.16192787,117.11,117.06,6.06280782]
[1769718496981,7.6978,117.13,117.09,6.06280782]
[1769718497181,3.46342787,117.15,117.1,2.80490029]
[1769718498088,6.26832816,117.14,117.09,3.25790753]
[1769718498279,13.96542816,117.14,117.09,3.25790753]
[1769718503894,13.96592816,117.13,117.07,6.06280782]
[1769718504591,13.96592816,117.13,117.08,3.25790753]
[1769718506286,3.37382626,117.12,117.07,2.80490029]
[1769718506796,3.37382626,117.12,117.07,6.05929812]
[1769718507295,11.07172626,117.12,117.07,6.05929812]
[1769718507796,6.17872655,117.12,117.07,3.25439783]
[1769718508797,7.6992,117.1,117.07,3.25439783]
[1769718510192,7.6992,117.1,117.07,9.783e-05]
[1769718512794,3.37382626,117.11,117.06,2.80490029]
[1769718512993,3.37382626,117.11,117.06,4.04792869]
[1769718513593,3.47377401,117.1,117.05,7.7024]
[1769718513798,3.47377401,117.09,117.04,1.23763438]
[1769718514098,3.47377401,117.09,117.05,1.23763438]
[1769718514300,3.47377401,117.09,117.04,1.23763438]
[1769718514499,6.2786743,117.09,117.04,1.23763438]
[1769718514897,3.47377401,117.09,117.05,4.04253467]
[1769718515292,3.47377401,117.09,117.05,1.23763438]
[1769718516000,6.2786743,117.07,117.02,8.94153438]
[1769718516298,6.2786743,117.07,117.02,1.23763438]
[1769718520904,6.2786743,117.07,117.02,8.94203438]
[1769718523008,3.47377401,117.07,117.02,8.94203438]
[1769718523305,6.2786743,117.07,117.02,8.94203438]
[1769718525300,3.47377401,117.07,117.02,8.94203438]
[1769718525700,6.2786743,117.07,117.02,8.94203438]
[1769718527199,2.80490029,117.06,117.02,8.94203438]
[1769718528608,6.2786743,117.07,117.02,8.94203438]
[1769718529308,2.80490029,117.06,117.02,8.94203438]
[1769718529803,2.80490029,117.05,117.02,1.23763438]
[1769718530001,2.80490029,117.05,117.0,342.11763438]
[1769718530207,6.2786743,117.05,117.0,342.11763438]
[1769718530402,3.47377401,117.05,117.0,342.11763438]
[1769718530606,3.47377401,117.05,117.01,1.23763438]
[1769718531305,6.2786743,117.05,117.0,340.88]
[1769718531604,6.2786743,117.05,117.0,342.11763438]
[1769718532209,6.2786743,117.05,117.0,1.23763438]
[1769718532408,6.2786743,117.05,117.0,8.94333438]
[1769718535204,6.2786743,117.05,117.0,1.23763438]
[1769718539214,2.80490029,117.04,117.0,1.23763438]
[1769718539712,6.20147194,117.04,116.99,7.7063]
[1769718540106,6.20147194,117.04,116.99,8.94740038]
[1769718541510,3.39657165,117.04,117.0,1.24110038]
[1769718542509,3.39657165,117.04,116.98,11.75300067]
[1769718542510,11.09977165,117.04,116.98,11.75300067]
[1769718542709,11.09977165,117.04,116.99,1.24110038]
[1769718543413,11.09977165,117.04,116.99,11.75230067]
[1769718543607,11.09977165,117.04,117.0,1.24110038]
[1769718543813,3.39657165,117.04,117.0,1.24110038]
[1769718544115,3.39657165,117.04,117.0,4.04600067]
[1769718544314,3.39657165,117.02,116.97,1.24110038]
[1769718545412,11.10097165,117.02,116.97,8.94880038]
[1769718546010,3.39657165,117.02,116.97,8.94880038]
[1769718546216,3.39657165,117.02,116.98,4.04600067]
[1769718546716,3.39657165,117.02,116.98,11.75300067]
[1769718548614,3.39657165,117.04,117.0,2.80490029]
[1769718550417,3.39657165,117.04,117.0,10.51060029]
[1769718553317,3.39657165,117.04,117.0,7.7057]
[1769718553912,3.39657165,117.02,116.97,1.24110038]
[1769718554226,6.20147194,117.02,116.97,1.24110038]
[1769718554515,6.20147194,117.02,116.97,8.94880038]
[1769718554710,3.39657165,117.02,116.97,11.75370067]
[1769718555514,6.20147194,117.02,116.97,8.94880038]
[1769718555719,6.20620382,117.02,116.97,1.24110038]
[1769718558128,6.20620382,117.02,116.97,8.94870038]
[1769718558325,3.39657165,117.02,116.97,8.94870038]
[1769718558723,6.20620382,117.02,116.97,8.94870038]
[1769718561329,6.20620382,117.02,116.97,1.24110038]
[1769718562723,13.91080382,117.02,116.97,1.24110038]
[1769718563324,3.39657165,117.02,116.96,4.05073255]
[1769718563633,3.39657165,117.02,116.97,2.80963217]
[1769718564328,11.10097165,117.02,116.97,2.80963217]
[1769718564633,6.20620382,117.01,116.96,1.24110038]
[1769718564934,13.91140382,117.01,116.96,1.24110038]
[1769718565335,11.10177165,117.01,116.96,1.24110038]
[1769718566033,7.7059,117.0,116.96,1.24110038]
[1769718567038,3.38603817,116.99,116.94,2.80963217]
[1769718567230,3.38603817,116.99,116.95,2.80963217]
[1769718568334,11.09253817,116.99,116.95,2.80963217]
[1769718568740,11.09253817,116.99,116.94,4.05022133]